bitfinex/quotes_BTCUSD_20240803
["timestamp","ask_amount","ask_price","bid_price","bid_amount"]
[1722686496393,2.70063686,61960.0,61959.0,0.000913]
[1722686496773,2.71463686,61960.0,61959.0,0.000913]
[1722686497224,2.95672786,61960.0,61959.0,0.000913]
[1722686497972,4.76462108,61960.0,61959.0,0.000913]
[1722686498183,4.88982362,61960.0,61959.0,0.000913]
[1722686498388,4.82517988,61960.0,61959.0,0.000913]
[1722686498592,4.87177234,61960.0,61959.0,0.000913]
[1722686498770,4.89977234,61960.0,61959.0,0.000913]
[1722686501435,4.90977234,61960.0,61959.0,0.000913]
[1722686501645,4.87217988,61960.0,61959.0,0.000913]
[1722686501853,4.93306096,61960.0,61959.0,0.000913]
[1722686502085,4.87217988,61960.0,61959.0,0.000913]
[1722686502311,5.45263009,61960.0,61959.0,0.000913]
[1722686502509,0.987269,61949.0,61948.0,0.009988]
[1722686502711,1.30573228,61949.0,61948.0,0.009988]
[1722686502838,1.16593228,61949.0,61948.0,0.009988]
[1722686503860,1.16593228,61949.0,61948.0,0.00901255]
[1722686504099,1.17993228,61949.0,61948.0,0.00901255]
[1722686504963,1.19393228,61949.0,61948.0,0.00901255]
[1722686505341,1.19438985,61949.0,61948.0,0.00901255]
[1722686505911,1.19438985,61949.0,61948.0,0.09051255]
[1722686506504,0.605365,61946.0,61944.0,0.065]
[1722686506708,2.23482424,61946.0,61945.0,0.074988]
[1722686506911,1.99267824,61946.0,61945.0,0.074988]
[1722686507224,1.99267824,61946.0,61945.0,0.069988]
[1722686507783,2.00367824,61946.0,61945.0,0.069988]
[1722686507992,1.65045924,61946.0,61945.0,0.069988]
[1722686509487,1.65045924,61946.0,61945.0,0.151488]
[1722686510450,1.65045924,61946.0,61945.0,0.272563]
[1722686510653,1.65045924,61946.0,61945.0,0.31774613]
[1722686511267,1.65045924,61946.0,61945.0,0.19667113]
[1722686511616,1.65045924,61946.0,61945.0,0.756863]
[1722686511936,0.757,61946.0,61945.0,1.04419613]
[1722686512656,0.757,61946.0,61945.0,1.07119613]
[1722686512865,1.90948745,61948.0,61947.0,0.958997]
[1722686512997,1.90948745,61948.0,61947.0,1.09315591]
[1722686513180,1.90948745,61948.0,61947.0,1.13835646]
[1722686513386,1.90948745,61948.0,61947.0,1.38049846]
[1722686514018,1.84288745,61948.0,61947.0,1.38249846]
[1722686514214,1.84288745,61948.0,61947.0,1.38349846]
[1722686514416,1.84288745,61948.0,61947.0,1.43177685]
[1722686514417,1.69298745,61948.0,61947.0,1.43177685]
[1722686514699,1.69298745,61948.0,61947.0,1.40449846]
[1722686514911,1.69298745,61948.0,61947.0,1.40349846]
[1722686515099,1.69298745,61948.0,61947.0,1.40549846]
[1722686515302,1.69298745,61948.0,61947.0,1.11835646]
[1722686515503,1.69298745,61948.0,61947.0,1.13935646]
[1722686515677,1.69398745,61948.0,61947.0,1.20175646]
[1722686516044,1.69398745,61948.0,61947.0,1.20075646]
[1722686516045,1.69298745,61948.0,61947.0,1.20075646]
[1722686516430,1.69298745,61948.0,61947.0,1.21175646]
[1722686516431,1.69398745,61948.0,61947.0,1.21175646]
[1722686516629,1.69398745,61948.0,61947.0,1.45589846]
[1722686516831,1.69298745,61948.0,61947.0,1.44489846]
[1722686517306,1.69498745,61948.0,61947.0,1.46289846]
[1722686517511,1.69398745,61948.0,61947.0,1.45389846]
[1722686517709,1.69298745,61948.0,61947.0,1.44489846]
[1722686517873,1.69498745,61948.0,61947.0,1.46489846]
[1722686518078,1.69498745,61948.0,61947.0,1.55989846]
[1722686518582,1.69398745,61948.0,61947.0,1.55089846]
[1722686519071,1.69498745,61948.0,61947.0,1.613191]
[1722686519395,1.69398745,61948.0,61947.0,1.602191]
[1722686519598,1.69398745,61948.0,61947.0,1.867333]
[1722686519807,1.69398745,61948.0,61947.0,1.81904046]
[1722686520006,1.69498745,61948.0,61947.0,1.92662554]
[1722686520438,1.69498745,61948.0,61947.0,2.08408478]
[1722686520609,1.69498745,61948.0,61947.0,1.9874997]
[1722686521275,1.69498745,61948.0,61947.0,2.08405974]
[1722686522714,1.69498745,61948.0,61947.0,2.08403258]
[1722686523473,1.69498745,61948.0,61947.0,1.98747254]
[1722686523887,1.69498745,61948.0,61947.0,1.85334613]
[1722686524090,1.69498745,61948.0,61947.0,2.08403243]
[1722686524291,0.002,61948.0,61947.0,1.98747239]
[1722686524487,0.002,61948.0,61947.0,2.10820374]
[1722686525097,0.002,61948.0,61947.0,2.10911674]
[1722686526319,0.002,61948.0,61947.0,1.98838539]
[1722686526657,0.002,61948.0,61947.0,2.10911674]
[1722686527223,0.002,61948.0,61947.0,1.74624339]
[1722686527409,0.002,61948.0,61947.0,1.84268563]
[1722686528008,0.002,61948.0,61947.0,2.08482763]
[1722686528216,0.002,61948.0,61947.0,1.84268563]
[1722686528411,0.002,61948.0,61947.0,1.74624339]
[1722686528873,0.002,61948.0,61947.0,1.98838539]
[1722686529076,0.002,61948.0,61947.0,1.74624339]
[1722686529437,0.002,61948.0,61947.0,1.81857392]
[1722686530018,0.002,61948.0,61947.0,1.74624339]
[1722686530173,0.002,61948.0,61947.0,2.03661026]
[1722686530379,0.002,61948.0,61947.0,1.79446826]
[1722686530792,0.002,61948.0,61947.0,3.30941026]
[1722686531016,0.002,61948.0,61947.0,3.30940965]
[1722686531180,0.002,61948.0,61947.0,3.06726765]
[1722686531380,0.002,61948.0,61947.0,3.26118539]
[1722686531640,0.002,61948.0,61947.0,3.01904339]
[1722686531867,0.002,61948.0,61947.0,3.06726765]
[1722686532350,0.002,61948.0,61947.0,3.01904339]
[1722686532717,0.002,61948.0,61947.0,3.01905151]
[1722686533121,0.002,61948.0,61947.0,3.01905037]
[1722686533982,0.002,61948.0,61947.0,2.86159113]
[1722686536195,0.002,61948.0,61947.0,2.77566304]
[1722686536406,0.002,61948.0,61947.0,2.86158838]
[1722686539626,0.002,61948.0,61947.0,2.72745789]
[1722686539826,0.002,61948.0,61947.0,2.86159298]
[1722686540474,0.002,61948.0,61947.0,2.92865919]
[1722686541056,0.002,61948.0,61947.0,3.17080119]
[1722686541284,0.002,61948.0,61947.0,2.92865919]
[1722686543474,0.002,61948.0,61947.0,3.09993255]
[1722686543678,0.002,61948.0,61947.0,2.7945241]
[1722686543940,0.002,61948.0,61947.0,2.92865508]
[1722686544620,0.002,61948.0,61947.0,3.09990792]
[1722686544760,0.002,61948.0,61947.0,2.92865508]
[1722686544966,0.002,61948.0,61947.0,3.09987194]
[1722686545332,0.002,61948.0,61947.0,2.92865623]
[1722686545478,0.002,61948.0,61947.0,3.099872]
[1722686545826,0.002,61948.0,61947.0,2.92865623]
[1722686546126,0.002,61948.0,61947.0,3.14806835]
[1722686546327,0.002,61948.0,61947.0,2.97685258]
[1722686546571,0.002,61948.0,61947.0,3.39021035]
[1722686546782,0.002,61948.0,61947.0,2.97685192]
[1722686546994,0.002,61948.0,61947.0,3.08102133]
[1722686547193,0.002,61948.0,61947.0,3.09989074]
[1722686547394,0.002,61948.0,61947.0,3.14808709]
[1722686547883,0.002,61948.0,61947.0,3.09989074]
[1722686548231,0.002,61948.0,61947.0,3.14808709]
[1722686548611,0.002,61948.0,61947.0,3.24915811]
[1722686548814,0.002,61948.0,61947.0,3.41682192]
[1722686548945,0.002,61948.0,61947.0,3.65896392]
[1722686549129,0.002,61948.0,61947.0,3.66666757]
[1722686549324,0.002,61948.0,61947.0,3.42452557]
[1722686549531,0.002,61948.0,61947.0,3.49688196]
[1722686550225,0.002,61948.0,61947.0,3.42452557]
[1722686550447,0.002,61948.0,61947.0,3.32915511]
[1722686550645,0.002,61948.0,61947.0,3.39622117]
[1722686551514,0.002,61948.0,61947.0,3.42025749]
[1722686551716,0.002,61948.0,61947.0,3.41825749]
[1722686552227,0.002,61948.0,61947.0,3.44235567]
[1722686552664,0.002,61948.0,61947.0,3.44435567]
[1722686553287,0.002,61948.0,61947.0,3.32386478]
[1722686553767,0.002,61948.0,61947.0,3.01856073]
[1722686553969,0.002,61948.0,61947.0,3.42438022]
[1722686554173,0.002,61948.0,61947.0,3.49144583]
[1722686554377,0.002,61948.0,61947.0,3.55851161]
[1722686554581,0.002,61948.0,61947.0,3.491446]
[1722686555599,0.002,61948.0,61947.0,3.63603507]
[1722686555949,0.002,61948.0,61947.0,3.87817707]
[1722686556367,0.002,61948.0,61947.0,3.491446]
[1722686556539,0.002,61948.0,61947.0,3.733588]
[1722686557410,0.002,61948.0,61947.0,3.49885818]
[1722686557540,0.002,61948.0,61947.0,3.66652129]
[1722686557755,0.002,61948.0,61947.0,3.73358653]
[1722686557953,0.002,61948.0,61947.0,3.73358641]
[1722686558154,0.002,61948.0,61947.0,3.6665205]
[1722686558357,0.002,61948.0,61947.0,3.82397974]
[1722686558539,0.002,61948.0,61947.0,4.03850699]
[1722686559158,0.002,61948.0,61947.0,3.82397974]
[1722686559362,0.002,61948.0,61947.0,4.03860172]
[1722686560986,0.00283,61948.0,61947.0,4.03860911]
[1722686562253,0.00283,61948.0,61947.0,3.82398713]
[1722686564437,0.00283,61948.0,61947.0,3.45169159]
[1722686564638,0.00283,61948.0,61947.0,3.75686917]
[1722686564840,0.00283,61948.0,61947.0,3.82393374]
[1722686565060,0.00283,61948.0,61947.0,3.8239592]
[1722686568032,0.00283,61948.0,61947.0,3.75689418]
[1722686568238,0.00283,61948.0,61947.0,3.89102227]
[1722686568437,0.00283,61948.0,61947.0,3.82395825]
[1722686569674,0.00283,61948.0,61947.0,3.51875429]
[1722686569870,0.00283,61948.0,61947.0,3.8239401]
[1722686570629,0.00283,61948.0,61947.0,3.82394037]
[1722686570950,0.00283,61948.0,61947.0,3.82394415]
[1722686571774,0.00283,61948.0,61947.0,3.8239659]
[1722686571975,0.00283,61948.0,61947.0,3.82396599]
[1722686575450,0.00283,61948.0,61947.0,3.75701829]
[1722686575606,0.00283,61948.0,61947.0,3.82408271]
[1722686575819,0.00283,61948.0,61947.0,3.82405649]
[1722686576016,0.00283,61948.0,61947.0,3.76165656]
[1722686577909,0.00283,61948.0,61947.0,3.6944758]
[1722686578111,0.00283,61948.0,61947.0,3.76154025]
[1722686579008,0.00283,61948.0,61947.0,3.59387911]
[1722686579239,0.00283,61948.0,61947.0,3.7615398]
[1722686579644,0.06563,61948.0,61947.0,2.98457156]
[1722686579850,0.14583,61948.0,61947.0,2.4864448]
[1722686581273,0.14583,61948.0,61947.0,1.1136448]
[1722686581523,0.14583,61948.0,61947.0,1.1064111]
[1722686581726,0.14583,61948.0,61947.0,1.19837064]
[1722686581910,0.14583,61948.0,61947.0,1.1014111]
[1722686582114,0.14583,61948.0,61947.0,1.19837081]
[1722686582460,0.14583,61948.0,61947.0,1.1014111]
[1722686583095,0.14583,61948.0,61947.0,1.19837081]
[1722686583268,0.14583,61948.0,61947.0,1.1014111]
[1722686583642,0.14583,61948.0,61947.0,0.93194547]
[1722686583755,0.14583,61948.0,61947.0,0.8033691]
[1722686583973,0.14583,61948.0,61947.0,0.67647389]
[1722686584812,0.14383,61948.0,61947.0,0.65147389]
[1722686585005,0.14483,61948.0,61947.0,0.65947389]
[1722686585215,0.30328924,61948.0,61947.0,0.18318989]
[1722686585967,0.30328924,61948.0,61947.0,0.42533189]
[1722686586368,0.30328924,61948.0,61947.0,0.48123189]
[1722686586593,0.126057,61954.0,61948.0,0.10671076]
[1722686586865,0.15745924,61953.0,61949.0,0.28713019]
[1722686587067,0.15745924,61953.0,61950.0,0.0559]
[1722686587269,0.15745924,61953.0,61951.0,0.121063]
[1722686587394,0.15745924,61953.0,61951.0,0.16605867]
[1722686587599,0.15745924,61953.0,61951.0,0.04499567]
[1722686587820,0.15745924,61953.0,61951.0,0.16605767]
[1722686588023,0.4055,61957.0,61951.0,0.16605767]
[1722686588024,0.4055,61957.0,61951.0,0.04499567]
[1722686588230,0.15745924,61956.0,61953.0,0.121059]
[1722686588431,0.15745924,61956.0,61954.0,0.0449934]
[1722686588625,0.15745924,61956.0,61953.0,0.121059]
[1722686588831,0.15745924,61956.0,61954.0,0.1660484]
[1722686589081,0.15745924,61956.0,61954.0,0.0449934]
[1722686589487,0.15745924,61956.0,61953.0,0.0559]
[1722686589817,0.1415,61955.0,61954.0,0.121057]
[1722686590020,0.29895924,61955.0,61954.0,0.121057]
[1722686590212,0.1415,61954.0,61953.0,0.0559]
[1722686590578,0.1415,61954.0,61953.0,0.22195316]
[1722686590784,0.1415,61954.0,61953.0,0.16605316]
[1722686590980,0.1415,61954.0,61953.0,0.04499416]
[1722686591718,0.1415,61954.0,61953.0,0.16705316]
[1722686592276,0.1415,61954.0,61953.0,0.40917216]
[1722686592477,0.1415,61954.0,61953.0,0.41117216]
[1722686593126,0.1415,61954.0,61953.0,0.65329116]
[1722686593271,0.1415,61954.0,61953.0,0.89541016]
[1722686593759,0.0648,61954.0,61953.0,0.89541016]
[1722686593967,0.4005,61957.0,61956.0,0.852374]
[1722686594174,0.4005,61957.0,61956.0,0.908274]
[1722686594379,0.4005,61957.0,61956.0,0.95326589]
[1722686595108,0.40533,61957.0,61956.0,0.95326589]
[1722686595899,0.40333,61957.0,61956.0,0.95326589]
[1722686596291,0.40333,61957.0,61956.0,0.95626589]
[1722686597089,0.40133,61957.0,61956.0,0.95626589]
[1722686597288,0.40133,61957.0,61956.0,0.95826589]
[1722686597493,0.40133,61957.0,61956.0,0.95526589]
[1722686597687,0.40133,61957.0,61956.0,0.95326589]
[1722686597908,0.40133,61957.0,61956.0,0.95826589]
[1722686600450,0.40133,61957.0,61956.0,1.08521373]
[1722686601041,0.40133,61957.0,61956.0,0.95826589]
[1722686605437,0.54263,61957.0,61956.0,0.95826589]
[1722686606975,0.54263,61957.0,61956.0,0.90236589]
[1722686607194,0.54263,61957.0,61956.0,0.95826589]
[1722686608455,0.43591924,61957.0,61956.0,0.65525889]
[1722686608667,0.35471924,61957.0,61956.0,0.71115889]
[1722686609124,0.29461924,61957.0,61956.0,0.71115889]
[1722686609948,0.29461924,61957.0,61956.0,0.70815889]
[1722686610578,0.29461924,61957.0,61956.0,0.70615889]
[1722686610965,0.29461924,61957.0,61956.0,0.71015889]
[1722686611161,0.29461924,61957.0,61956.0,0.70915889]
[1722686611544,0.29461924,61957.0,61956.0,0.71115889]
[1722686611976,0.37581924,61957.0,61956.0,0.71115889]
[1722686616500,0.29461924,61957.0,61956.0,0.71115889]
[1722686617640,0.29461924,61957.0,61956.0,0.70815889]
[1722686618103,0.29661924,61957.0,61956.0,0.70815889]
[1722686618481,0.29661924,61957.0,61956.0,0.70615889]
[1722686618686,0.29861924,61957.0,61956.0,0.70615889]
[1722686619404,0.29661924,61957.0,61956.0,0.70615889]
[1722686619809,0.29861924,61957.0,61956.0,0.70615889]
[1722686622100,0.35941924,61957.0,61956.0,0.04499189]
[1722686622308,0.35941924,61957.0,61951.0,0.00116029]
[1722686622309,0.1362,61956.0,61951.0,0.00116029]
[1722686622536,0.1362,61956.0,61951.0,0.121062]
[1722686622537,0.0608,61953.0,61951.0,0.121062]
[1722686622857,0.0754,61952.0,61949.0,0.242134]
[1722686623029,0.0608,61951.0,61950.0,0.121064]
[1722686624342,0.0608,61951.0,61950.0,0.126064]
[1722686625104,0.0608,61951.0,61950.0,0.615324]
[1722686625303,0.15745924,61955.0,61953.0,0.121059]
[1722686625304,0.0625,61954.0,61953.0,0.121059]
[1722686625552,0.0625,61954.0,61953.0,0.419078]
[1722686625924,0.0625,61956.0,61955.0,0.121054]
[1722686626130,0.0625,61956.0,61955.0,0.176954]
[1722686626411,0.0625,61956.0,61955.0,0.419065]
[1722686626860,0.0625,61956.0,61955.0,0.176954]
[1722686627498,0.0635,61956.0,61955.0,0.4186243]
[1722686627700,0.0645,61956.0,61955.0,0.4186243]
[1722686630851,0.0645,61956.0,61955.0,0.3627243]
[1722686631204,0.0645,61956.0,61955.0,0.1206133]
[1722686633493,0.0645,61956.0,61955.0,0.15467321]
[1722686634540,0.0645,61956.0,61955.0,0.39678421]
[1722686634984,0.002,61956.0,61955.0,0.39678421]
[1722686637413,0.35525924,61956.0,61955.0,0.03405991]
[1722686637611,2.86252624,61956.0,61955.0,0.03405991]
[1722686637810,0.508089,61951.0,61950.0,0.000913]
[1722686638042,0.96357424,61951.0,61950.0,0.000913]
[1722686639305,0.96357424,61951.0,61950.0,0.001913]
[1722686639529,0.97757424,61951.0,61950.0,0.001913]
[1722686639968,0.96357424,61951.0,61950.0,0.000913]
[1722686640774,0.97457424,61951.0,61950.0,0.001913]
[1722686641147,0.98857424,61951.0,61950.0,0.002913]
[1722686642067,0.44842224,61951.0,61950.0,0.002913]
[1722686642437,0.25055924,61951.0,61950.0,0.002913]
[1722686642782,0.25055924,61951.0,61950.0,0.058813]
[1722686642783,0.025,61951.0,61950.0,0.058813]
[1722686642983,0.025,61951.0,61950.0,0.564608]
[1722686643395,0.014,61951.0,61950.0,0.59763559]
[1722686643807,0.027,61951.0,61950.0,0.53303559]
[1722686644005,0.368,61952.0,61951.0,0.363189]
[1722686644402,0.368,61952.0,61951.0,0.39721584]
[1722686646092,1.29016424,61952.0,61951.0,0.03502684]
[1722686646298,1.29916424,61952.0,61951.0,0.002]
[1722686647288,1.05704224,61952.0,61951.0,0.002]
[1722686649692,1.29916424,61952.0,61951.0,0.002]
[1722686651956,1.05704224,61952.0,61951.0,0.002]
[1722686652155,0.73322024,61952.0,61951.0,0.002]
[1722686653167,0.97534224,61952.0,61951.0,0.002]
[1722686655886,0.54345924,61952.0,61951.0,0.0579]
[1722686656103,0.386,61952.0,61951.0,0.663215]
[1722686656306,0.386,61952.0,61951.0,0.905341]
[1722686656514,0.386,61952.0,61951.0,0.93947027]
[1722686656717,0.386,61952.0,61951.0,0.83624427]
[1722686657574,0.018,61952.0,61951.0,0.83624427]
[1722686657783,0.018,61952.0,61951.0,0.96724713]
[1722686657988,0.018,61952.0,61951.0,1.20937313]
[1722686658193,0.018,61952.0,61951.0,1.20935292]
[1722686659294,0.018,61952.0,61951.0,1.201979]
[1722686659957,0.018,61952.0,61951.0,1.20196074]
[1722686660996,0.018,61952.0,61951.0,1.07581999]
[1722686661177,0.018,61952.0,61951.0,1.20198661]
[1722686661921,0.018,61952.0,61951.0,1.15363689]
[1722686662741,0.018,61952.0,61951.0,1.14863689]
[1722686663150,0.018,61952.0,61951.0,1.02247027]
[1722686663972,0.018,61952.0,61951.0,0.71724427]
[1722686665667,0.018,61952.0,61951.0,0.79599621]
[1722686666286,0.018,61952.0,61951.0,0.71724427]
[1722686667474,0.018,61952.0,61951.0,0.95937027]
[1722686668994,0.018,61952.0,61951.0,1.02347027]
[1722686669844,0.018,61952.0,61951.0,1.02847027]
[1722686670048,0.018,61952.0,61951.0,1.20291334]
[1722686670629,0.018,61952.0,61951.0,1.79586642]
[1722686670831,1e-06,61952.0,61951.0,1.69913075]
[1722686670994,1e-06,61952.0,61951.0,2.00831649]
[1722686671189,1e-06,61952.0,61951.0,2.15142]
[1722686671394,0.00083,61955.0,61954.0,1.261517]
[1722686671614,0.00083,61955.0,61954.0,2.04863766]
[1722686671813,0.00083,61955.0,61954.0,2.14987302]
[1722686672012,0.00083,61955.0,61954.0,2.14377202]
[1722686672860,0.045,61975.0,61968.0,1.09427]
[1722686673061,0.045,61975.0,61968.0,1.37907]
[1722686673344,0.045,61975.0,61968.0,1.42324123]
[1722686673597,0.045,61975.0,61968.0,1.60370047]
[1722686674378,0.045,61975.0,61968.0,1.61270047]
[1722686674774,0.045,61975.0,61968.0,1.74090339]
[1722686674990,0.045,61975.0,61968.0,1.74088896]
[1722686675194,0.045,61975.0,61968.0,1.79612005]
[1722686675428,0.045,61975.0,61968.0,1.74788896]
[1722686676164,0.045,61975.0,61968.0,1.83198996]
[1722686678134,0.045,61975.0,61968.0,1.70770047]
[1722686678552,0.045,61975.0,61968.0,1.84206749]
[1722686678753,0.045,61975.0,61968.0,1.84596649]
[1722686680007,0.045,61975.0,61968.0,2.08802649]
[1722686680341,0.045,61975.0,61968.0,2.08810867]
[1722686681358,0.045,61975.0,61968.0,2.09010867]
[1722686682336,0.045,61975.0,61968.0,2.09975079]
[1722686684361,0.045,61975.0,61968.0,2.08385179]
[1722686684558,0.045,61975.0,61968.0,1.84179179]
[1722686685764,0.045,61975.0,61968.0,1.85175236]
[1722686685965,0.045,61975.0,61968.0,1.85565136]
[1722686686570,0.045,61975.0,61968.0,1.85765136]
[1722686689993,0.045,61975.0,61968.0,1.73324159]
[1722686690201,0.045,61975.0,61968.0,1.85164386]
[1722686690953,0.045,61975.0,61968.0,1.85554286]
[1722686691200,0.045,61975.0,61968.0,1.85164386]
[1722686691392,0.045,61975.0,61968.0,1.85554286]
[1722686691606,0.045,61975.0,61968.0,1.85754286]
[1722686692140,0.045,61975.0,61968.0,2.1476476]
[1722686692345,0.045,61975.0,61968.0,2.09960286]
[1722686692565,0.045,61975.0,61968.0,2.14763248]
[1722686693174,0.045,61975.0,61968.0,2.09960286]
[1722686693389,0.045,61975.0,61968.0,1.92853148]
[1722686693850,0.045,61975.0,61968.0,1.91263248]
[1722686694051,0.045,61975.0,61968.0,1.85258805]
[1722686694255,0.045,61975.0,61968.0,1.90062156]
[1722686694482,0.045,61975.0,61968.0,1.85258805]
[1722686694816,0.045,61975.0,61968.0,1.90062156]
[1722686695385,0.045,61975.0,61968.0,1.88862156]
[1722686695582,0.045,61975.0,61968.0,1.85058805]
[1722686695824,0.045,61975.0,61968.0,1.88863754]
[1722686696236,0.045,61975.0,61968.0,1.88863924]
[1722686696612,0.045,61975.0,61968.0,1.84058805]
[1722686696814,0.045,61975.0,61968.0,1.89864928]
[1722686697025,0.0612,61977.0,61968.0,1.85191509]
[1722686697500,0.0612,61977.0,61968.0,1.92400632]
[1722686697647,0.0612,61977.0,61968.0,1.92600632]
[1722686698254,0.0612,61977.0,61968.0,1.85391509]
[1722686698584,0.1432,61980.0,61968.0,1.85781409]
[1722686698966,0.1432,61980.0,61968.0,1.85391509]
[1722686699168,0.1432,61980.0,61968.0,1.92485629]
[1722686699369,0.1432,61980.0,61968.0,2.01704227]
[1722686699944,0.1432,61980.0,61968.0,2.01710313]
[1722686700139,0.1432,61980.0,61968.0,2.02100213]
[1722686700339,0.1432,61980.0,61968.0,1.8294048]
[1722686700515,0.1432,61980.0,61968.0,1.89644709]
[1722686700713,0.1432,61980.0,61968.0,1.85779729]
[1722686700714,0.0612,61980.0,61968.0,1.85779729]
[1722686700918,0.0612,61980.0,61968.0,2.04509729]
[1722686701119,0.0005,61985.0,61968.0,1.80028387]
[1722686701120,0.0602,61984.0,61968.0,1.80028387]
[1722686701279,0.0602,61984.0,61968.0,2.09986034]
[1722686701476,0.0602,61984.0,61968.0,2.04234182]
[1722686701692,0.0005,61985.0,61984.0,1.103986]
[1722686701900,0.0005,61985.0,61984.0,1.48890375]
[1722686702121,0.0005,61985.0,61984.0,1.76892323]
[1722686702398,0.0005,61985.0,61984.0,1.74848121]
[1722686702600,0.0005,61985.0,61984.0,1.67632623]
[1722686702807,0.0005,61985.0,61984.0,1.42629597]
[1722686702956,0.0015,61985.0,61984.0,1.4022364]
[1722686703265,0.0015,61985.0,61984.0,1.62559564]
[1722686703442,0.0005,61985.0,61984.0,1.59050023]
[1722686703672,0.0005,61985.0,61984.0,1.60250023]
[1722686703871,0.0005,61985.0,61984.0,1.82795521]
[1722686704088,0.0005,61985.0,61984.0,1.85604105]
[1722686704970,0.0005,61985.0,61984.0,2.09803805]
[1722686705171,0.0005,61985.0,61984.0,2.10283793]
[1722686705449,1e-06,61985.0,61984.0,2.20053329]
[1722686705585,0.045,61993.0,61992.0,1.247147]
[1722686705783,0.045,61993.0,61992.0,1.86357595]
[1722686706063,0.045,61993.0,61992.0,2.14133362]
[1722686706192,0.045,61993.0,61992.0,2.14626662]
[1722686706402,0.045,61993.0,61992.0,2.0731306]
[1722686706606,0.045,61993.0,61992.0,2.18940163]
[1722686706806,0.045,61993.0,61992.0,2.18954448]
[1722686707016,0.045,61993.0,61992.0,2.06937445]
[1722686707421,0.045,61993.0,61992.0,1.69264755]
[1722686707627,0.045,61993.0,61992.0,1.59654921]
[1722686708027,0.045,61993.0,61992.0,1.65360596]
[1722686708258,0.045,61993.0,61992.0,1.61554921]
[1722686708460,0.045,61993.0,61992.0,1.66360345]
[1722686709108,0.045,61993.0,61992.0,1.66360405]
[1722686709437,0.045,61993.0,61992.0,1.61554921]
[1722686709569,0.045,61993.0,61992.0,1.66360471]
[1722686710416,0.045,61993.0,61992.0,1.61554921]
[1722686711074,0.045,61993.0,61992.0,1.69763148]
[1722686711445,0.045,61993.0,61992.0,1.68765486]
[1722686711620,0.045,61993.0,61992.0,1.69733739]
[1722686712029,0.045,61993.0,61992.0,1.69683739]
[1722686712496,0.045,61993.0,61992.0,1.62473174]
[1722686713038,0.045,61993.0,61992.0,1.88830067]
[1722686713669,0.045,61993.0,61992.0,1.87830067]
[1722686714084,0.045,61993.0,61992.0,1.87837737]
[1722686714515,0.045,61993.0,61992.0,1.78219098]
[1722686715478,0.045,61993.0,61992.0,1.90242397]
[1722686715704,0.045,61993.0,61992.0,1.91632297]
[1722686715916,0.045,61993.0,61992.0,1.85499098]
[1722686716107,0.045,61993.0,61992.0,1.85888998]
[1722686716316,0.045,61993.0,61992.0,2.10085598]
[1722686716929,0.045,61993.0,61992.0,2.09895698]
[1722686717137,0.045,61993.0,61992.0,2.24727491]
[1722686717317,0.045,61993.0,61992.0,2.2430141]
[1722686717535,0.045,61993.0,61992.0,2.2469131]
[1722686717669,0.045,61993.0,61992.0,2.2430141]
[1722686718463,0.045,61993.0,61992.0,1.9890481]
[1722686718657,0.045,61993.0,61992.0,1.84462917]
[1722686718864,0.045,61993.0,61992.0,1.85462917]
[1722686719074,0.045,61993.0,61992.0,2.00103687]
[1722686719478,0.045,61993.0,61992.0,2.24300287]
[1722686719884,0.045,61993.0,61992.0,1.84462917]
[1722686720698,0.045,61993.0,61992.0,1.57788044]
[1722686720901,0.045,61993.0,61992.0,1.2264286]
[1722686721108,0.045,61993.0,61992.0,1.07839963]
[1722686721314,0.045,61993.0,61992.0,1.51192568]
[1722686721512,0.045,61993.0,61992.0,1.82061188]
[1722686721795,0.045,61993.0,61992.0,1.87874131]
[1722686721951,0.045,61993.0,61992.0,1.76038492]
[1722686722312,0.045,61993.0,61992.0,1.78138492]
[1722686723434,0.045,61993.0,61992.0,1.78429792]
[1722686723609,0.04583,61993.0,61992.0,1.78429792]
[1722686724698,0.04583,61993.0,61992.0,1.78819692]
[1722686725647,0.04583,61993.0,61992.0,2.03016292]
[1722686726052,0.04583,61993.0,61992.0,2.23957062]
[1722686726464,0.04583,61993.0,61992.0,2.09516292]
[1722686726844,0.04583,61993.0,61992.0,2.08616292]
[1722686727587,0.04583,61993.0,61992.0,2.08226392]
[1722686728296,0.04583,61993.0,61992.0,2.09626392]
[1722686728719,0.04583,61993.0,61992.0,2.07226392]
[1722686728941,0.04583,61993.0,61992.0,2.08626392]
[1722686729143,0.04583,61993.0,61992.0,2.26778884]
[1722686729544,0.04583,61993.0,61992.0,2.27168784]
[1722686730286,0.04583,61993.0,61992.0,2.27628884]
[1722686730451,0.04583,61993.0,61992.0,2.4005004]
[1722686731128,0.04583,61993.0,61992.0,2.27988365]
[1722686731338,0.04583,61993.0,61992.0,2.40019811]
[1722686731533,0.04583,61993.0,61992.0,2.23267254]
[1722686731738,0.04583,61993.0,61992.0,2.40019803]
[1722686732339,0.04583,61993.0,61992.0,2.39629903]
[1722686732537,0.04583,61993.0,61992.0,2.22877818]
[1722686733172,0.04583,61993.0,61992.0,2.40020318]
[1722686733387,0.04583,61993.0,61992.0,2.39630418]
[1722686733941,0.04583,61993.0,61992.0,2.38630418]
[1722686734132,0.04583,61993.0,61992.0,2.38430418]
[1722686734359,0.04583,61993.0,61992.0,2.39630418]
[1722686734468,0.04583,61993.0,61992.0,2.39630413]
[1722686735316,0.04583,61993.0,61992.0,2.27598503]
[1722686735693,0.04583,61993.0,61992.0,1.87039208]
[1722686736063,0.04583,61993.0,61992.0,1.95277934]
[1722686736240,0.04583,61993.0,61992.0,1.95077934]
[1722686736439,0.04583,61993.0,61992.0,2.19274534]
[1722686736856,0.04583,61993.0,61992.0,1.95077934]
[1722686737001,0.04583,61993.0,61992.0,1.88577934]
[1722686737203,0.04583,61993.0,61992.0,1.88580399]
[1722686737608,0.04583,61993.0,61992.0,1.78273875]
[1722686737792,0.04583,61993.0,61992.0,1.71049308]
[1722686737793,0.11143,61993.0,61992.0,1.71049308]